fUSD/lending_fUSD_20251217
["ID","MTS","AMOUNT","RATE_DAILY","PERIOD"]
[398880078,1765960240521,-300.0,0.00016438,3]
[398880079,1765960240530,-300.0,0.00016438,3]
[398880080,1765960240541,-300.0,0.00016438,3]
[398880081,1765960240550,-300.0,0.00016438,3]
[398880082,1765960240559,-502.323179,0.00016438,2]
[398880083,1765960240568,-502.323179,0.00016438,2]
[398880084,1765960240579,-502.323179,0.00016438,2]
[398880085,1765960240589,-502.323179,0.00016438,2]
[398880086,1765960240598,-502.323179,0.00016438,2]
[398880087,1765960240608,-502.323179,0.00016438,2]
[398880088,1765960240617,-502.323179,0.00016438,2]
[398880089,1765960240626,-502.323179,0.00016438,2]
[398880090,1765960240634,-502.323179,0.00016438,2]
[398880091,1765960240644,-502.323179,0.00016438,2]
[398880092,1765960240653,-502.323179,0.00016438,2]
[398880093,1765960240662,-502.323179,0.00016438,2]
[398880094,1765960240671,-502.323179,0.00016438,2]
[398880095,1765960240681,-502.323179,0.00016438,2]
[398880096,1765960240690,-502.323179,0.00016438,2]
[398880097,1765960240699,-502.323179,0.00016438,2]
[398880098,1765960240709,-502.323179,0.00016438,2]
[398880099,1765960240719,-502.323179,0.00016438,2]
[398880100,1765960240728,-502.323179,0.00016438,2]
[398880101,1765960240737,-502.323187,0.00016438,2]
[398880102,1765960240746,-151.0,0.00016438,2]
[398880103,1765960240756,-151.0,0.00016438,2]
[398880104,1765960240765,-151.0,0.00016438,2]
[398880105,1765960240774,-151.0,0.00016438,2]
[398880106,1765960240783,-151.0,0.00016438,2]
[398880107,1765960240793,-151.0,0.00016438,2]
[398880108,1765960240802,-151.0,0.00016438,2]
[398880109,1765960240819,-151.0,0.00016438,2]
[398880110,1765960240832,-151.0,0.00016438,2]
[398880111,1765960240842,-151.0,0.00016438,2]
[398880112,1765960240852,-151.0,0.00016438,2]
[398880113,1765960240863,-205.818786,0.00016438,2]
[398880114,1765960240872,-13037.59,0.00016438,2]
[398880115,1765960240881,-801.71075194,0.00016438,2]
[398880116,1765960240891,-377.0,0.00016438,2]
[398880117,1765960240901,-481.46730423,0.00016458,2]
[398880118,1765960240910,-1625.95520096,0.00016488,2]
[398880119,1765960240919,-1680.0,0.00016499,2]
[398880120,1765960240929,-185.57590641,0.000165,2]
[398880121,1765960240938,-2500.0,0.000165,2]
[398880122,1765960240948,-2500.0,0.000165,2]
[398880123,1765960240957,-2500.0,0.000165,2]
[398880124,1765960240967,-2500.0,0.000165,2]
[398880125,1765960240976,-2500.0,0.000165,2]
[398880126,1765960240986,-3329.85380563,0.00016506,2]
[398880127,1765960240995,-377.0,0.0001652,2]
[398880128,1765960241004,-1234.0,0.00016526,2]
[398880129,1765960241013,-377.0,0.00016537,2]
[398880130,1765960241023,-1625.95520096,0.00016591,2]
[398880131,1765960241032,-574.12855637,0.00016612,2]
[398880132,1765960241041,-377.0,0.00016617,2]
[398880133,1765960241051,-191.0,0.00016645,2]
[398880134,1765960241062,-191.0,0.00016669,2]
[398880135,1765960241071,-377.0,0.00016674,2]
[398880136,1765960241080,-377.0,0.00016682,2]
[398880137,1765960241089,-1625.95520096,0.00016694,2]
[398880138,1765960241098,-191.0,0.00016695,2]
[398880139,1765960241108,-191.0,0.00016705,2]
[398880140,1765960241118,-164.0,0.00016712,2]
[398880141,1765960241127,-1000.0,0.00016738,2]
[398880142,1765960241136,-377.0,0.00016751,2]
[398880143,1765960241146,-377.0,0.00016755,2]
[398880144,1765960241155,-191.0,0.00016783,2]
[398880145,1765960241164,-1625.95520096,0.00016797,2]
[398880146,1765960241174,-924.54393931,0.0001681,2]
[398880147,1765960241183,-246.89009437,0.00016811,2]
[398880148,1765960241192,-30408.46198994,0.0001682,2]
[398880149,1765960241201,-1377.5328948,0.00016843,2]
[398880150,1765960241212,-358.50644939,0.00016843,2]
[398880151,1765960241221,-5098.39919,0.00016843,2]
[398880152,1765960241230,-1000.0,0.00016843,2]
[398880153,1765960241239,-1000.0,0.00016843,2]
[398880154,1765960241249,-200.0,0.0001685,2]
[398880155,1765960241259,-158.04,0.00016859,2]
[398880156,1765960241268,-10000.0,0.000169,2]
[398880157,1765960241277,-832.87662618,0.000169,2]
[398880158,1765960241286,-155.20047333,0.000169,2]
[398880159,1765960241297,-1625.95520096,0.000169,2]
[398880160,1765960241306,-1479.59106458,0.000169,2]
[398880161,1765960241315,-990.67813528,0.000169,2]
[398880162,1765960241325,-219.63809581,0.000169,2]
[398880163,1765960241334,-290.11099971,0.000169,2]
[398880164,1765960241343,-1136.05693934,0.000169,2]
[398880165,1765960241353,-173.85,0.00016961,2]
[398880166,1765960241362,-500.0,0.00016973,2]
[398880167,1765960241371,-502.93181499,0.00016973,2]
[398880168,1765960241380,-500.0,0.00016973,2]
[398880169,1765960241389,-500.0,0.00016973,2]
[398880170,1765960241399,-500.0,0.00016973,2]
[398880171,1765960241408,-500.0,0.00016973,2]
[398880172,1765960241417,-500.71124086,0.00016973,2]
[398880173,1765960241426,-276.35412541,0.00016973,2]
[398880174,1765960241435,-500.79172108,0.00016973,2]
[398880175,1765960241445,-341.41992772,0.00016973,2]
[398880176,1765960241455,-500.0,0.00016973,2]
[398880177,1765960241464,-500.0,0.00016973,2]
[398880178,1765960241474,-201.55783771,0.00016973,2]
[398880179,1765960241483,-500.0,0.00016973,2]
[398880180,1765960241493,-500.0,0.00016973,2]
[398880181,1765960241506,-500.0,0.00016973,2]
[398880182,1765960241516,-476.4698319,0.00016973,2]
[398880183,1765960241525,-500.0,0.00016973,2]
[398880184,1765960241535,-500.0,0.00016973,2]
[398880185,1765960241546,-500.82544955,0.00016973,2]
[398880186,1765960241555,-1600.0,0.00016986,2]
[398880187,1765960241564,-500.0,0.00016986,2]
[398880188,1765960241576,-619.0,0.00016986,2]
[398880189,1765960241585,-53183.86,0.00016986,2]
[398880190,1765960241596,-600.0,0.00016986,2]
[398880191,1765960241605,-263.27741998,0.0001699,2]
[398880192,1765960241614,-263.27741998,0.0001699,2]
[398880193,1765960241623,-263.27741998,0.0001699,2]
[398880194,1765960241633,-300.0,0.00016999,2]
[398880195,1765960241642,-500.0,0.00016999,2]
[398880196,1765960241651,-500.0,0.00016999,2]
[398880197,1765960241660,-500.0,0.00016999,2]
[398880198,1765960241670,-500.0,0.00016999,2]
[398880199,1765960241679,-206.01147421,0.00016999,2]
[398880200,1765960241689,-300.0,0.00016999,2]
[398880201,1765960241698,-500.0,0.00016999,2]
[398880202,1765960241707,-500.0,0.00016999,2]
[398880203,1765960241717,-500.0,0.00016999,2]
[398880204,1765960241726,-420.62,0.00016999,2]
[398880205,1765960241735,-8960.0,0.00017,2]
[398880206,1765960241744,-199.231217,0.00017,2]
[398880207,1765960241754,-43874.23787417,0.00017,2]
[398880208,1765960241771,-45378.70487611,0.00017,2]
[398880209,1765960241891,-450.0,0.00016201,2]
[398880210,1765960241901,-825.68569252,0.00016234,2]
[398880211,1765960241913,-986.31430748,0.00016234,2]
[398880212,1765960241923,-8597.97411108,0.00017,2]
[398880213,1765960241943,-2679.27911557,0.00017,2]
[398880214,1765960241958,-3608.27472446,0.00017,2]
[398880216,1765960243994,-1844.40697459,0.00015878,2]
[398880217,1765960244132,-354.43302541,0.00015878,2]
[398880218,1765960244142,-2198.84,0.00015878,2]
[398880219,1765960244153,-2198.84,0.00015878,2]
[398880220,1765960244163,-2198.84,0.00015963,2]
[398880221,1765960244173,-2205.0462446,0.00016182,2]
[398880222,1765960244182,-20498.46232098,0.00017,2]
[398880223,1765960244195,-110141.37503971,0.00017,2]
[398880224,1765960244206,-1134.51786749,0.00017,2]
[398880225,1765960244225,-1413.24483371,0.00016063,2]
[398880226,1765960244240,-785.59516629,0.00016063,2]
[398880227,1765960244249,-1010.81091768,0.00017,2]
[398880235,1765960245835,-1399.79386997,0.00016302,2]
[398880236,1765960245847,-805.25237463,0.00016302,2]
[398880237,1765960245856,-1527.00677063,0.00017,2]
[398880238,1765960245907,-4330.03520605,0.00017,2]
[398880239,1765960246105,-993.0,0.00017,2]
[398880240,1765960246117,-753.01482349,0.00017,2]
[398880241,1765960246180,-4604.5391497,0.00017,2]
[398880242,1765960246191,-651.4799978,0.00017,2]
[398880246,1765960335331,500.0,0.00018,30]
[398880247,1765960335384,500.0,0.00018,30]
[398880248,1765960335714,979.196,0.00017,30]
[398880249,1765960336202,500.0,0.00018,30]
[398880250,1765960336277,500.0,0.00017,30]
[398880251,1765960344264,500.0,0.00018,30]
[398880252,1765960344603,500.0,0.00017,30]
[398880253,1765960347172,500.0,0.00018,30]
[398880254,1765960347514,500.0,0.00017,30]
[398880255,1765960348632,500.0,0.00018,30]
[398880256,1765960351877,500.0,0.00018,30]
[398880257,1765960352010,500.0,0.00017,30]
[398880297,1765961289671,-818.59,0.00014809,2]
[398880298,1765961289693,-211.26333226,0.00015188,2]
[398880299,1765961289715,-300.0,0.00015287,2]
[398880300,1765961289735,-761.0,0.00015287,2]
[398880301,1765961289758,-150.0,0.00015288,2]
[398880302,1765961289778,-150.0,0.00015288,2]
[398880303,1765961289798,-150.0,0.00015288,2]
[398880304,1765961289819,-150.0,0.00015288,2]
[398880305,1765961289840,-150.0,0.00015288,2]
[398880306,1765961289862,-151.9773931,0.00015288,2]
[398880307,1765961289882,-151.77579161,0.00015288,2]
[398880308,1765961289903,-150.0,0.00015288,2]
[398880309,1765961289923,-150.00000001,0.00015288,2]
[398880310,1765961290488,-150.0,0.00015288,2]
[398880311,1765961290510,-211.26333225,0.00015326,2]
[398880312,1765961311111,300.0,0.00014795,3]
[398880313,1765961347999,164.9202735,0.0001539,2]
[398880314,1765961348218,676.980391,7.945e-05,2]
[398880315,1765961408448,2252.22948627,7.945e-05,2]
[398880316,1765961408481,247.77051373,7.945e-05,2]
[398880320,1765961431944,-654.684538,0.00015386,2]
[398880321,1765961431953,-211.26333225,0.00015464,2]
[398880322,1765961431962,-133.05212975,0.00015476,2]
[398880323,1765961431973,-116.94787025,0.00015476,2]
[398880324,1765961431982,-151.0,0.00015487,2]
[398880325,1765961431991,-151.0,0.00015487,2]
[398880326,1765961432000,-285.0,0.00015489,2]
[398880327,1765961432011,-300.0,0.00015489,2]
[398880328,1765961432020,-1200.0,0.00015489,2]
[398880329,1765961432029,-230.25636887,0.0001549,2]
[398880330,1765961432038,-500.0,0.0001549,2]
[398880331,1765961432048,-500.0,0.0001549,2]
[398880332,1765961432057,-280.63897509,0.0001549,2]
[398880333,1765961432066,-167.75291465,0.0001549,2]
[398880334,1765961432076,-230.16387114,0.0001549,2]
[398880335,1765961432100,-269.83612886,0.0001549,2]
[398880336,1765961432112,-500.0,0.0001549,2]
[398880337,1765961432127,-507.62477653,0.0001549,2]
[398880338,1765961432136,-287.70058584,0.0001549,2]
[398880339,1765961432146,-500.0,0.0001549,2]
[398880340,1765961432155,-522.4284576,0.0001549,2]
[398880341,1765961432165,-500.0,0.0001549,2]
[398880342,1765961432174,-327.40110584,0.0001549,2]
[398880343,1765961432183,-507.65515811,0.0001549,2]
[398880344,1765961432192,-564.75851857,0.0001549,2]
[398880345,1765961432202,-500.0,0.0001549,2]
[398880347,1765961432212,-500.0,0.0001549,2]
[398880348,1765961432221,-500.0,0.0001549,2]
[398880349,1765961432230,-500.0,0.0001549,2]
[398880350,1765961432239,-500.0,0.0001549,2]
[398880351,1765961432249,-623.78473681,0.0001549,2]
[398880352,1765961432258,-500.0,0.0001549,2]
[398880354,1765961432267,-373.17569827,0.0001549,2]
[398880356,1765961432276,-500.0,0.0001549,2]
[398880358,1765961432285,-500.0,0.0001549,2]
[398880360,1765961432294,-500.0,0.0001549,2]
[398880362,1765961432303,-300.0,0.0001549,2]
[398880364,1765961432312,-728.63,0.0001549,2]
[398880366,1765961432322,-5736.87653361,0.00015491,2]
[398880369,1765961432333,-450.72894432,0.00015491,2]
[398880386,1765961438038,-261033.37294,0.00015491,2]
[398880387,1765961438050,-4414.45259616,0.00015564,2]
[398880388,1765961438059,-2590.98,0.00015625,2]
[398880389,1765961438069,-2590.98,0.00015625,2]
[398880390,1765961438079,-2590.98,0.00015625,2]
[398880391,1765961438088,-2590.98,0.00015625,2]
[398880392,1765961438098,-2590.98,0.00015625,2]
[398880393,1765961438108,-281.72817446,0.00015635,2]
[398880394,1765961438117,-526823.4914,0.00015635,2]
[398880395,1765961438127,-5414.59970918,0.00015664,2]
[398880396,1765961438137,-4414.45259616,0.00015712,2]
[398880397,1765961438148,-151.0,0.00015735,2]
[398880398,1765961438159,-151.0,0.00015735,2]
[398880399,1765961438169,-414.996452,0.00015735,2]
[398880400,1765961438179,-414.996452,0.00015735,2]
[398880401,1765961438189,-414.996452,0.00015735,2]
[398880402,1765961438198,-414.996452,0.00015735,2]
[398880403,1765961438207,-151.0,0.00015735,2]
[398880404,1765961438217,-172.545447,0.00015735,2]
[398880405,1765961438227,-172.545447,0.00015735,2]
[398880406,1765961438237,-172.545447,0.00015735,2]
[398880407,1765961438247,-172.545447,0.00015735,2]
[398880408,1765961438257,-127922.58,0.00015735,2]
[398880409,1765961438268,-728.63,0.00015764,2]
[398880410,1765961438278,-200.0,0.00015764,2]
[398880411,1765961438287,-5414.59970911,0.00015801,2]
[398880412,1765961438296,-152.37,0.00015822,2]
[398880414,1765961438306,-4414.45259616,0.00015861,2]
[398880415,1765961438315,-553.64373807,0.00015878,2]
[398880416,1765961438324,-1234.0,0.00015878,2]
[398880417,1765961438335,-620.0,0.00015878,2]
[398880418,1765961438344,-300.0,0.00015878,2]
[398880419,1765961438354,-500.0,0.00015887,2]
[398880420,1765961438363,-500.0,0.00015887,2]
[398880421,1765961438373,-500.0,0.00015887,2]
[398880422,1765961438382,-500.0,0.00015887,2]
[398880423,1765961438392,-500.0,0.00015887,2]
[398880424,1765961438401,-500.0,0.00015887,2]
[398880425,1765961438411,-5414.59970911,0.00015939,2]
[398880426,1765961438421,-1240.08844988,0.00015947,2]
[398880427,1765961438430,-4414.45259616,0.00016009,2]
[398880428,1765961438439,-728.63,0.00016038,2]
[398880429,1765961438448,-500.0,0.00016073,2]
[398880430,1765961438457,-500.0,0.00016073,2]
[398880431,1765961438466,-500.0,0.00016073,2]
[398880432,1765961438476,-514.23721699,0.00016073,2]
[398880433,1765961438485,-500.0,0.00016073,2]
[398880434,1765961438494,-5414.59970911,0.00016076,2]
[398880435,1765961438503,-436.26074643,0.0001608,2]
[398880436,1765961438512,-150.0,0.00016137,2]
[398880437,1765961438522,-150.0,0.00016137,2]
[398880438,1765961438531,-4414.45259616,0.00016158,2]
[398880439,1765961438541,-1106.18,0.00016192,2]
[398880440,1765961438551,-1217.27,0.00016192,2]
[398880441,1765961438560,-5414.59970911,0.00016213,2]
[398880442,1765961438570,-281.72817446,0.00016242,2]
[398880443,1765961438579,-195.0,0.0001629,2]
[398880444,1765961438589,-4414.45259616,0.00016306,2]
[398880445,1765961438598,-728.63,0.00016312,2]
[398880446,1765961438607,-4297.5954592,0.00016323,2]
[398880447,1765961438616,-5414.59970911,0.00016351,2]
[398880448,1765961438625,-574.12855637,0.00016426,2]
[398880449,1765961438635,-1234.0,0.00016426,2]
[398880450,1765961438644,-500.0,0.00016438,2]
[398880451,1765961438654,-500.0,0.00016438,2]
[398880452,1765961438664,-500.0,0.00016438,2]
[398880453,1765961438675,-500.0,0.00016438,2]
[398880454,1765961438685,-500.0,0.00016438,2]
[398880455,1765961438694,-500.0,0.00016438,2]
[398880456,1765961438704,-500.0,0.00016438,2]
[398880457,1765961438714,-500.0,0.00016438,2]
[398880458,1765961438723,-500.0,0.00016438,2]
[398880459,1765961438732,-500.0,0.00016438,2]
[398880460,1765961438741,-500.0,0.00016438,2]
[398880461,1765961438751,-500.0,0.00016438,2]
[398880462,1765961438761,-500.0,0.00016438,2]
[398880463,1765961438770,-500.0,0.00016438,2]
[398880464,1765961438779,-500.0,0.00016438,2]
[398880465,1765961438789,-500.0,0.00016438,2]
[398880466,1765961438798,-500.0,0.00016438,2]
[398880467,1765961438808,-500.0,0.00016438,2]
[398880468,1765961438817,-500.0,0.00016438,2]
[398880469,1765961438827,-500.0,0.00016438,2]
[398880470,1765961438836,-500.0,0.00016438,2]
[398880471,1765961438845,-500.0,0.00016438,2]
[398880472,1765961438855,-500.0,0.00016438,2]
[398880473,1765961438864,-500.0,0.00016438,2]
[398880474,1765961438874,-500.0,0.00016438,2]
[398880475,1765961438883,-500.0,0.00016438,2]
[398880476,1765961438893,-500.0,0.00016438,2]
[398880477,1765961438902,-500.0,0.00016438,2]
[398880478,1765961438911,-500.0,0.00016438,2]
[398880479,1765961438922,-500.0,0.00016438,2]
[398880480,1765961438932,-500.0,0.00016438,2]
[398880481,1765961438941,-500.0,0.00016438,2]
[398880482,1765961439287,-500.0,0.00016438,2]
[398880483,1765961439322,-500.0,0.00016438,2]
[398880484,1765961439332,-500.0,0.00016438,2]
[398880485,1765961439341,-500.0,0.00016438,2]
[398880486,1765961439350,-500.0,0.00016438,2]
[398880487,1765961439359,-500.0,0.00016438,2]
[398880488,1765961439368,-500.0,0.00016438,2]
[398880489,1765961439377,-500.0,0.00016438,2]
[398880490,1765961439386,-500.0,0.00016438,2]
[398880491,1765961439395,-500.0,0.00016438,2]
[398880492,1765961439404,-500.0,0.00016438,2]
[398880493,1765961439413,-500.0,0.00016438,2]
[398880494,1765961439422,-500.0,0.00016438,2]
[398880495,1765961439431,-500.0,0.00016438,2]
[398880496,1765961439440,-500.0,0.00016438,2]
[398880497,1765961439450,-500.0,0.00016438,2]
[398880498,1765961439460,-500.0,0.00016438,2]
[398880499,1765961439469,-500.0,0.00016438,2]
[398880500,1765961439479,-500.0,0.00016438,2]
[398880501,1765961439488,-500.0,0.00016438,2]
[398880502,1765961439498,-500.0,0.00016438,2]
[398880503,1765961439507,-500.0,0.00016438,2]
[398880504,1765961439517,-500.0,0.00016438,2]
[398880505,1765961439526,-500.0,0.00016438,2]
[398880506,1765961439535,-500.0,0.00016438,2]
[398880507,1765961439545,-500.0,0.00016438,2]
[398880508,1765961439554,-500.0,0.00016438,2]
[398880509,1765961439563,-500.0,0.00016438,2]
[398880510,1765961439572,-500.0,0.00016438,2]
[398880511,1765961439582,-500.0,0.00016438,2]
[398880512,1765961439591,-500.0,0.00016438,2]
[398880513,1765961439600,-539.41012263,0.00016438,2]
[398880514,1765961439609,-974.58098371,0.00016438,2]
[398880515,1765961439618,-974.58098371,0.00016438,2]
[398880516,1765961439627,-974.58098371,0.00016438,2]
[398880517,1765961439635,-974.58098371,0.00016438,2]
[398880518,1765961439644,-974.58098371,0.00016438,2]
[398880519,1765961439653,-974.58098371,0.00016438,2]
[398880520,1765961439662,-974.58098371,0.00016438,2]
[398880521,1765961439672,-974.58098371,0.00016438,2]
[398880522,1765961439680,-974.58098371,0.00016438,2]
[398880523,1765961439689,-974.58098371,0.00016438,2]
[398880524,1765961439698,-974.58098371,0.00016438,2]
[398880525,1765961439707,-974.58098371,0.00016438,2]
[398880526,1765961439716,-974.58098371,0.00016438,2]
[398880527,1765961439725,-974.58098371,0.00016438,2]
[398880528,1765961439734,-974.58098371,0.00016438,2]
[398880529,1765961439743,-974.58098371,0.00016438,2]
[398880530,1765961439752,-974.58098371,0.00016438,2]
[398880531,1765961439762,-974.58098371,0.00016438,2]
[398880532,1765961439771,-974.58098371,0.00016438,2]
[398880533,1765961439781,-974.58098371,0.00016438,2]
[398880534,1765961439790,-974.58098371,0.00016438,2]
[398880535,1765961439799,-974.58098371,0.00016438,2]
[398880536,1765961439808,-974.58098371,0.00016438,2]
[398880537,1765961439817,-974.58098371,0.00016438,2]
[398880538,1765961439827,-974.58098371,0.00016438,2]
[398880539,1765961439836,-157.4465,0.00016438,2]
[398880540,1765961439845,-500.0,0.00016438,2]
[398880541,1765961439854,-438.364816,0.00016438,2]
[398880542,1765961439863,-438.364816,0.00016438,2]
[398880543,1765961439872,-438.364816,0.00016438,2]
[398880544,1765961439881,-438.364816,0.00016438,2]
[398880545,1765961439890,-151.0,0.00016438,2]
[398880546,1765961439899,-153.911303,0.00016438,2]
[398880547,1765961439908,-151.0,0.00016438,2]
[398880548,1765961439916,-414.996452,0.00016438,2]
[398880549,1765961439926,-414.996452,0.00016438,2]
[398880550,1765961439935,-414.996452,0.00016438,2]
[398880551,1765961439943,-414.996452,0.00016438,2]
[398880552,1765961439952,-151.0,0.00016438,2]
[398880553,1765961439961,-172.545447,0.00016438,2]
[398880554,1765961439970,-172.545447,0.00016438,2]
[398880555,1765961439979,-172.545447,0.00016438,2]
[398880556,1765961439988,-172.545447,0.00016438,2]
[398880557,1765961439997,-721.0,0.00016438,2]
[398880558,1765961440006,-721.0,0.00016438,2]
[398880559,1765961440015,-721.0,0.00016438,2]
[398880560,1765961440024,-151.0,0.00016438,2]
[398880561,1765961440034,-4414.45259616,0.00016455,2]
[398880562,1765961440043,-481.46730423,0.00016458,2]
[398880563,1765961440052,-500.0,0.00016488,2]
[398880564,1765961440062,-352.71314952,0.00016488,2]
[398880565,1765961440072,-500.0,0.00016488,2]
[398880566,1765961440081,-5414.59970911,0.00016488,2]
[398880567,1765961440090,-3818.07209773,0.00016567,2]
[398880568,1765961440099,-728.63,0.00016585,2]
[398880569,1765961440109,-4414.45259616,0.00016603,2]
[398880570,1765961440118,-510.0,0.0001662,2]
[398880571,1765961440127,-414.996452,0.00016625,2]
[398880572,1765961440137,-414.996452,0.00016625,2]
[398880573,1765961440147,-414.996452,0.00016625,2]
[398880574,1765961440156,-414.996452,0.00016625,2]
[398880575,1765961440165,-151.0,0.00016625,2]
[398880576,1765961440174,-172.545447,0.00016625,2]
[398880577,1765961440184,-172.545447,0.00016625,2]
[398880578,1765961440193,-172.545447,0.00016625,2]
[398880579,1765961440203,-172.545447,0.00016625,2]
[398880580,1765961440212,-5414.59970911,0.00016625,2]
[398880581,1765961440221,-3329.85380563,0.0001666,2]
[398880582,1765961440230,-2500.0,0.00016673,2]
[398880583,1765961440239,-500.0,0.00016723,2]
[398880584,1765961440248,-41547.59275839,0.00016724,2]
[398880585,1765961440257,-151.0,0.00016724,2]
[398880586,1765961440266,-151.0,0.00016724,2]
[398880587,1765961440275,-438.364816,0.00016724,2]
[398880588,1765961440284,-438.364816,0.00016724,2]
[398880589,1765961440293,-438.364816,0.00016724,2]
[398880590,1765961440304,-438.364816,0.00016724,2]
[398880591,1765961440313,-4414.45259616,0.00016752,2]
[398880592,1765961440322,-5414.59970911,0.00016763,2]
[398880593,1765961440331,-324.7542401,0.00016829,2]
[398880594,1765961440340,-414.996452,0.00016839,2]
[398880595,1765961440351,-414.996452,0.00016839,2]
[398880596,1765961440363,-414.996452,0.00016839,2]
[398880597,1765961440373,-414.996452,0.00016839,2]
[398880598,1765961440383,-151.0,0.00016839,2]
[398880599,1765961440391,-172.545447,0.00016839,2]
[398880600,1765961440400,-172.545447,0.00016839,2]
[398880601,1765961440410,-172.545447,0.00016839,2]
[398880602,1765961440419,-172.545447,0.00016839,2]
[398880603,1765961440428,-41854.67261249,0.00016839,2]
[398880604,1765961440437,-1000.0,0.00016848,2]
[398880605,1765961440446,-281.72817446,0.00016848,2]
[398880606,1765961440456,-728.64,0.00016859,2]
[398880607,1765961440465,-200.0,0.00016863,2]
[398880608,1765961440474,-200.0,0.00016864,2]
[398880609,1765961440483,-200.0,0.00016864,2]
[398880610,1765961440492,-10000.0,0.00016873,2]
[398880611,1765961440501,-151.0,0.00016873,2]
[398880612,1765961440511,-151.0,0.00016873,2]
[398880613,1765961440520,-438.364816,0.00016873,2]
[398880614,1765961440529,-438.364816,0.00016873,2]
[398880615,1765961440539,-438.364816,0.00016873,2]
[398880616,1765961440548,-438.364816,0.00016873,2]
[398880617,1765961440557,-219.0,0.00016881,2]
[398880618,1765961440567,-502.86,0.0001689,2]
[398880619,1765961440576,-2467.231,0.00016892,2]
[398880620,1765961440585,-994.82485904,0.000169,2]
[398880621,1765961440594,-4414.45259616,0.000169,2]
[398880622,1765961440603,-3057.91248667,0.000169,2]
[398880623,1765961440613,-5414.59970911,0.000169,2]
[398880624,1765961440622,-5506.36440648,0.000169,2]
[398880625,1765961440631,-1312.46329634,0.000169,2]
[398880626,1765961440640,-2671.5036419,0.00016916,2]
[398880627,1765961440649,-151.0,0.00016924,2]
[398880628,1765961440659,-30408.46198994,0.00016925,2]
[398880629,1765961440667,-420.0,0.00016943,2]
[398880630,1765961440677,-300.0,0.00016947,2]
[398880631,1765961440686,-300.0,0.00016947,2]
[398880632,1765961440695,-300.0,0.00016947,2]
[398880633,1765961440705,-300.0,0.00016947,2]
[398880634,1765961440714,-300.0,0.00016947,2]
[398880635,1765961440723,-300.0,0.00016947,2]
[398880636,1765961440732,-300.0,0.00016947,2]
[398880637,1765961440742,-300.0,0.00016947,2]
[398880638,1765961440751,-300.0,0.00016947,2]
[398880639,1765961440761,-300.0,0.00016947,2]
[398880640,1765961440770,-300.0,0.00016947,2]
[398880641,1765961440779,-300.0,0.00016947,2]
[398880642,1765961440788,-300.0,0.00016947,2]
[398880643,1765961440798,-300.0,0.00016947,2]
[398880644,1765961440807,-300.0,0.00016947,2]
[398880645,1765961440817,-300.0,0.00016947,2]
[398880646,1765961440826,-300.0,0.00016947,2]
[398880647,1765961440835,-300.0,0.00016947,2]
[398880648,1765961440844,-300.0,0.00016947,2]
[398880649,1765961440853,-300.0,0.00016947,2]
[398880650,1765961440862,-300.0,0.00016947,2]
[398880651,1765961440871,-300.0,0.00016947,2]
[398880652,1765961440880,-197.26900433,0.00016947,2]
[398880653,1765961440889,-500.0,0.00016947,2]
[398880654,1765961440899,-500.0,0.00016947,2]
[398880655,1765961440908,-500.0,0.00016947,2]
[398880656,1765961440917,-500.0,0.00016947,2]
[398880657,1765961440926,-300.0,0.00016947,2]